Cogmind - Beta 11.1 @@@ ROGUE MODE // 2022.10.13 @ 18:27:47 Player: ILikeMonsters1890 Result: Destroyed by as-06158 with Assembled Heavy Rifle Performance ------------- Evolutions (0) 0 Regions Visited (2) 400 Robots Destroyed (10) 50 Value Destroyed (136) 136 Prototype IDs (0) 0 Alien Tech Used (0) 0 Bonus (0) 0 TOTAL SCORE: 586 Bonus ------- None Cogmind --------- Core Integrity 0/250 Matter 253/300 Energy 93/100 System Corruption 7% Temperature Cool (0) Movement Core (50) Location -10/Mines Parts ------- > --- POWER (1) -------- (None) > --- PROPULSION (2) --- (None) > --- UTILITY (2) ------ (None) > --- WEAPON (2) ------- (None) > --- INVENTORY (5) ---- Light Ion Engine Wheel Wheel Small Storage Unit Peak State ------------ > --- POWER ------------ Ion Engine > --- PROPULSION ------- Wheel Wheel > --- UTILITY ---------- Small Storage Unit Improved Terrain Scanner > --- WEAPON ----------- Small Laser Light Assault Rifle > --- INVENTORY -------- Light Ion Engine Light Ion Engine Wheel EM Pulse Gun [Rating: 9] Favorites ----------- Power Ion Engine Engine Ion Engine Power Core Light Nuclear Core Propulsion Wheel Wheel Wheel Utility Small Storage Unit Device Seismic Detector Storage Small Storage Unit Weapon Small Laser Energy Gun Small Laser Ballistic Gun Light Assault Rifle Launcher Grenade Launcher Build | -11 -10 -10 ------- Run | Scr Mat Min Slots Evolved . | . . . Power . | . . . Propulsion . | . . . Utility . | . . . Weapon . | . . . Parts Attached 20 | 11 . 9 Power 3 | 1 . 2 Engine 2 | 1 . 1 Core 1 | . . 1 Reactor . | . . . Propulsion 9 | 5 . 4 Treads . | . . . Leg . | . . . Wheel 9 | 5 . 4 Hover . | . . . Flight . | . . . Utility 4 | 3 . 1 Device 3 | 2 . 1 Storage 1 | 1 . . Processor . | . . . Hackware . | . . . Protection . | . . . Artifact . | . . . Weapon 4 | 2 . 2 Energy Gun 1 | 1 . . Energy Cannon . | . . . Ballistic Gun 2 | 1 . 1 Ballistic Cannon . | . . . Launcher 1 | . . 1 Special Weapon . | . . . Impact Weapon . | . . . Slashing Weapon . | . . . Piercing Weapon . | . . . Special Melee Weapon . | . . . Unidentified Prototypes . | . . . Parts Lost 11 | . . 11 Power 2 | . . 2 Propulsion 4 | . . 4 Utility 2 | . . 2 Weapon 3 | . . 3 Highest Loss Streak 11 | . . 11 To Critical Strikes . | . . . Average Slot Usage (%) 91 | . 100 88 Engine 6 | . 14 3 Core 6 | . . 9 Wheel 25 | . 28 24 Device 13 | . 14 12 Storage 13 | . 14 13 Energy Gun 12 | . 14 11 Ballistic Gun 12 | . 14 11 Naked Turns 9 | . . 9 Heaviest Build 13 | 13 13 13 Greatest Support 26 | 26 20 20 Greatest Overweight (x) . | . . . Average Overweight (x) . | . . . Largest Inventory Capacity 8 | 8 8 8 Average Capacity 7 | 7 8 7 Most Carried 8 | 8 8 8 Average Carried 5 | 3 7 7 Final Capacity 8 | 8 8 5 Final Carried 8 | 8 8 4 Class Distribution -------------------- 100% | Mutant Dominant Class ---------------- Mutant | -10/Materials Mutant | -10/Mines Resources | -11 -10 -10 ----------- Run | Scr Mat Min Matter Collected 350 | 330 . 20 Remotely . | . . . Salvage Created 320 | 204 . 116 Parts 21 | 17 . 4 Haulers Intercepted . | . . . Recyclers Shooed . | . . . Parts Field Recycled . | . . . Retrieved Matter . | . . . Parts Self-Destructed . | . . . Prevented . | . . . Kills | -11 -10 -10 ------- Run | Scr Mat Min Combat Hostiles Destroyed 6 | . . 6 Guns 2 | . . 2 AOE 4 | . . 4 Classes Destroyed 4 | 2 . 2 Tunneler 7 | 7 . . Recycler 1 | 1 . . Grunt 2 | . . 2 Assembled 4 | . . 4 Best Kill Streak 4 | 2 . 4 Combat Bots Only 4 | . . 4 Max Kills in Single Turn 3 | 1 . 3 Gunslinging . | . . . Exploded 3 | . . 3 Melee . | . . . Uniques/NPCs Destroyed . | . . . Combat | -11 -10 -10 -------- Run | Scr Mat Min Damage Taken 875 | . 54 821 Core 252 | . . 252 Absorbed by Shields . | . . . Core Remaining (%) 100 | 100 . . Volleys Fired 36 | 20 3 13 Largest 2 | 2 2 2 Hottest 70 | 60 60 70 Shots Fired 71 | 40 6 25 Gun 69 | 40 6 23 Cannon . | . . . Launcher 2 | . . 2 Special . | . . . Kinetic 34 | 20 3 11 Thermal 35 | 20 3 12 Explosive 2 | . . 2 Electromagnetic . | . . . Robot Hit Streak 13 | 13 1 3 Robot Miss Streak 2 | 2 1 2 Penetration Max . | . . . Secondary Targets 1 | . . 1 Max Gunslinging Chain 1 | . . 1 Shots Hit Robots 44 | 29 1 14 Core Hits 31 | 13 . 18 Critical Kills . | . . . Critical Parts Destroyed . | . . . Critical Strikes . | . . . Melee Attacks . | . . . Impact . | . . . Slashing . | . . . Piercing . | . . . Sneak Attacks . | . . . Combat Hostiles . | . . . Follow-up Attacks . | . . . Damage Inflicted 726 | 271 6 449 Guns 426 | 271 6 149 Cannons . | . . . Explosions 298 | . . 298 Melee . | . . . Ramming 2 | . . 2 Kinetic 145 | 88 6 51 Thermal 281 | 183 . 98 Explosive 298 | . . 298 Electromagnetic . | . . . Impact . | . . . Slashing . | . . . Piercing . | . . . Highest Corruption 7 | . . 7 Average Corruption 5 | . . 5 Corruption Purged . | . . . Corruption Blocked . | . . . Overload Shots . | . . . Overflow Damage 8 | . . 8 Projectiles . | . . . Explosions 8 | . . 8 Melee . | . . . Knockbacks . | . . . Impact . | . . . Kinetic . | . . . Secondary . | . . . Self-Inflicted Damage 1 | . . 1 Shots . | . . . Rammed 1 | . . 1 Targets Rammed 1 | . . 1 Kicked . | . . . Crushed . | . . . Highest Temperature 142 | 40 20 142 Average Temperature 38 | 18 15 57 Received Heat Transfer 412 | . 30 382 Siege Activations . | . . . Robots Corrupted . | . . . Combat Hostiles . | . . . Parts Fried . | . . . Impact Corruptions . | . . . Robots Melted . | . . . Combat Hostiles . | . . . Parts Melted . | . . . Heat Transferred 650 | 425 . 225 Parts Sabotaged . | . . . Parts Stolen . | . . . Parts Stripped . | . . . Power Chain Reactions . | . . . Missiles Intercepted . | . . . Alert | -11 -10 -10 ------- Run | Scr Mat Min Peak Influence 108 | 40 67 108 Initial 26 | . 26 25 Average 40 | 16 58 62 Maximum Alert Level . | . . . Low Security (%) 100 | 100 100 100 Level 1 . | . . . Level 2 . | . . . Level 3 . | . . . Level 4 . | . . . Level 5 . | . . . High Security . | . . . Max Security . | . . . Squads Dispatched 1 | . 1 . Investigation . | . . . Extermination . | . . . Reinforcement 1 | . 1 . Assault . | . . . Garrison . | . . . Intercept . | . . . Searches Triggered . | . . . Construction Impeded . | . . . Haulers Reinforced . | . . . Active Scanning Responses . | . . . Cargo Convoy Interrupts . | . . . Stealth | -11 -10 -10 --------- Run | Scr Mat Min Distress Signals 1 | . 1 . Communications Jammed . | . . . Distress Signals . | . . . Times Spotted 28 | . 5 23 Peak Tracking Total 16 | . 4 16 Tactical Retreats 1 | . . 1 Traps | -11 -10 -10 ------- Run | Scr Mat Min Traps Triggered . | . . . Indirectly . | . . . Trap Hack Attempts . | . . . Triggered . | . . . Disarmed . | . . . Reprogrammed . | . . . Reused . | . . . Traps Extracted . | . . . Installed . | . . . Triggered . | . . . Machines | -11 -10 -10 ---------- Run | Scr Mat Min Machines Disabled . | . . . Max in Single Turn . | . . . Machines Sabotaged . | . . . Garrisons Compromised . | . . . Overloaded Fab Kills . | . . . Hacking | -11 -10 -10 --------- Run | Scr Mat Min Machines Accessed 2 | . 2 . Terminals 1 | . 1 . Fabricators . | . . . Repair Stations . | . . . Recycling Units 1 | . 1 . Scanalyzers . | . . . Garrison Access . | . . . Total Hacks 8 | . 8 . Successful 4 | . 4 . Failed 4 | . 4 . Catastrophic 2 | . 2 . Database Lockouts . | . . . Manual 1 | . 1 . Terminals 5 | . 5 . Fabricators . | . . . Repair Stations . | . . . Recycling Units 3 | . 3 . Scanalyzers . | . . . Garrison Access . | . . . Terminal Hacks 4 | . 4 . Branch Access Points 1 | . 1 . Emergency Access Points 1 | . 1 . Recall Reinforcements 1 | . 1 . Hauler Manifests 1 | . 1 . Fabricator Hacks . | . . . Repair Station Hacks . | . . . Recycling Unit Hacks . | . . . Scanalyzer . | . . . Garrison Access Hacks . | . . . Unauthorized Hacks . | . . . Terminals . | . . . Fabricators . | . . . Repair Stations . | . . . Recycling Units . | . . . Scanalyzers . | . . . Garrison Access . | . . . Data Cores Recovered . | . . . Used . | . . . Hacking Detections 2 | . 2 . Full Trace Events 1 | . 1 . Feedback Events . | . . . Feedback Blocked . | . . . Robot Schematics Acquired . | . . . Robots Built . | . . . Authchips . | . . . Time . | . . . Total Robot Build Rating . | . . . Part Schematics Acquired . | . . . Parts Built . | . . . Authchips . | . . . Time . | . . . Total Part Build Rating . | . . . Parts Repaired . | . . . Time . | . . . Parts Recycled . | . . . Recycled Matter . | . . . Retrieved Matter . | . . . Retrieved Components . | . . . Parts Scanalyzed . | . . . Part Schematics Acquired . | . . . Parts Damaged . | . . . Bothacking | -11 -10 -10 ------------ Run | Scr Mat Min Used RIF Installer . | . . . Robots Hacked . | . . . Non-combat . | . . . Combat . | . . . Robot Hacks Applied . | . . . Relay Couplers Released . | . . . Fabnet Peak Effective % . | . . . Robots Rewired . | . . . Allies Hacked . | . . . Hacks Repelled . | . . . Allies | -11 -10 -10 -------- Run | Scr Mat Min Total Allies . | . . . Largest Group . | . . . Highest-Rated Group . | . . . Highest-Rated Ally . | . . . Total Orders . | . . . Ally Attacks . | . . . Total Damage . | . . . Kills . | . . . Allies Corrupted . | . . . Allies Melted . | . . . Intel | -11 -10 -10 ------- Run | Scr Mat Min Robot Analysis Total . | . . . Derelict Logs Recovered . | . . . Drone Launches . | . . . Drone Recoveries . | . . . Exploration | -11 -10 -10 ------------- Run | Scr Mat Min Turns Passed 510 | 237 77 196 Spaces Moved 431 | 184 71 176 Core 35 | 17 . 18 Treads . | . . . Legs . | . . . Wheels 396 | 167 71 158 Hover . | . . . Flight . | . . . Fastest Speed 50 | 50 80 50 Average Speed 78 | 80 80 76 Slowest Speed 90 | 90 80 80 Overloaded Moves . | . . . Propulsion Burnouts . | . . . Robots Hopped . | . . . Cave-ins Triggered . | . . . Exploration Rate (%) 20 | 7 20 35 Regions Visited 2 Branch Regions 1 Pre-discovered Areas . | . . . Known Exits Taken 1 | . 1 . Unknown Exits Taken 1 | 1 . . Scrap Searched 1 | . . 1 Spaces Dug . | . . . Terrain Destroyed 16 | . . 16 Melee . | . . . Projectile . | . . . AOE 16 | . . 16 Terrain Rammed . | . . . Walls Destroyed . | . . . Machines Disabled . | . . . Actions | -11 -10 -10 --------- Run | Scr Mat Min Total 537 | 237 86 214 Wait 20 | . 11 9 Move 429 | 183 70 176 Hop . | . . . Pick Up 22 | 19 1 2 Fast Attach . | . . . Attach 13 | 7 . 6 Detach 2 | . . 2 Swap 7 | 4 . 3 Drop 7 | 4 1 2 Fire 36 | 20 3 13 Melee . | . . . Ram 1 | . . 1 Kick . | . . . Crush . | . . . Escape Stasis . | . . . Rewire . | . . . Trap . | . . . Miscellaneous . | . . . Route ------- -11/Scrapyard -10/Materials -10/Mines History --------- Turn | Location | Event 6 | -11/Scrapyard | Discovered new exit (range 16) 238 | -11/Scrapyard | Entered Materials 253 | -10/Materials | Identified exit to Mines 315 | -10/Materials | Build established: Mutant 315 | -10/Materials | Entered Mines 450 | -10/Mines | Assembled infested the area 502 | -10/Mines | Core integrity fell below 50% 507 | -10/Mines | Core integrity fell below 20% 511 | -10/Mines | Destroyed by as-06158 with Assembled Heavy Rifle Last Messages --------------- 00457_ as-84363 destroyed. 00459_ U-05 Engineer lays Concrete. 00460_ as-90827 destroyed. 00461_ U-05 Engineer lays Concrete. 00462_ Grenade Launcher destroyed. 00465_ U-05 Engineer destroyed. 00474_ Wheel destroyed. 00482_ Sml. Laser destroyed. 00482_ System corrupted by crushing effect (+2). 00483_ Lgt. Nuclear Core destroyed. 00485_ Seismic Detector destroyed. 00485_ System corrupted by crushing effect (+3). 00485_ Lgt. Assault Rifle destroyed. 00493_ Sensor Array destroyed. 00493_ System corrupted by crushing effect (+2). 00493_ Knocked back. 00494_ Wheel destroyed. 00497_ Slammed into as-25159. 00498_ Ion Engine destroyed. 00498_ Wheel destroyed. Map ----- +----------------------------------------------------+ | ?????????# #??## #?????? | | ??????????# #### #?????? | | ??????????# ### ## ##?????? | | ??????????# #?## [%= ####??????? | | ??????????# #??##% [*##?????????? | | ??????????# #???######??????????? | | ??????????# #???????????????????? | | ########### #???????????????????? | | #???????????????????? | | #############???????????????????? | | ????????????????????????????????? | | ????????????????????????????????? | | ????????????????????????????????? | | #???????????????????????????????? | | #####???????????????????????????? | | #####??##???????????????????? | | %!#??# ##?????????????????? | | ## ### #??? #?????????????????? | | ## #?# #???# ##????????????????? | | ## #?# #???# ##???????????????? | | ## ### ##### #???????????????? | | ## ##??????????????? | | # #??????????????? | | ##### ###### ###########????? | | #???# ?????## #????? | | ##???# ??????# ########@ #????? | | #???? ?????# #??????# #????? | | ?????# ????# ##??????# #????? | | ?????# ???# ##???????# #????? | | ?????# ???# ##????????# ##???? | | ?????# ???# #??????????# ###?? | | ?????#????###???????????# ##? | | ???????????????????????## [ #? | | ??????????????????????## ! #? | | ?????????????????????## ##? | | ????????????????????## ####?? | | ??????????? # ###### ##????? | | ?????????? ##????? | | ?????? """ ! #????? | | ?????? """ = * #### a #????? | | ?????? """ #???## #????? | | ?????# ??# #????## ##???? | | ??????#??????## #?????##! ##??? | | ??????????????# ??????# #??? | | ?????????????? ??????# #??? | | ?????????????? ??????# ##??? | | ????????????? % ??????# #???? | | ????????????? % ??????# ##???? | | ????????????? ?????## #????? | | ????????????# #????# #????? | +----------------------------------------------------+ Best States ------------- Heat Dissipation 25 Energy Generation 14 Energy Capacity 250 Matter Stores 300 Matter Capacity 300 Sight Range 16 Robot Scan Range 14 Terrain Scan Range 16 Terrain Scan Density 10 Evasion (%) 50 Item Schematics ----------------- None Robot Schematics ------------------ None Fabricated ------------ Nothing Alien Tech Used ----------------- None Achievements -------------- None Challenges ------------ None Game ------ Seed AccelerationTiamatCharge Manual? 0 Play Time 00:10:04 Cumulative 71.9 hours Start 2022.10.13 @ 18:20:12 End 2022.10.13 @ 18:27:47 Sessions 1 Manual Loads 0 Difficulty Rogue Special Mode None Game No. 80 Rogue 80 Adventurer 0 Explorer 0 Win Type - Total 0 Types 0/0/0/0/0/0/0/0/0 Lore% 54 Gallery% 44 Achievement% 38 Wizard Run 0 Options --------- ASCII 0 Keyboard 0 Movement Numpad Keybinds 0 Fullscreen 2 Font 18/SmallcapsGlow Map View 76x50 Tactical HUD 1 Map Filters NONE Filters NONE Steam 1 RUN: 32c50b53-a614-4445-a9ae-da82a347dbf3